bitfinex-derivatives/quotes_ETHF0:USTF0_20250620
["timestamp","ask_amount","ask_price","bid_price","bid_amount"]
[1750429885653,18.65662428,2518.3,2518.2,0.79415]
[1750429885852,44.42647428,2518.3,2518.2,0.79415]
[1750429886057,34.268,2518.3,2518.2,0.79415]
[1750429886255,3.2078,2518.5,2518.3,0.79411]
[1750429886454,27.35609,2518.4,2518.3,0.79411]
[1750429886751,0.79417,2518.2,2517.9,1.3213]
[1750429886951,0.79414,2518.3,2518.1,0.79418]
[1750429887150,26.56,2518.2,2518.1,0.79416]
[1750429887353,3.2078,2518.5,2518.4,0.79409]
[1750429887749,7.705,2518.8,2518.5,1.98513]
[1750429887952,0.79389,2519.1,2519.0,0.79389]
[1750429888255,1.89913112,2519.1,2519.0,0.7939]
[1750429888562,36.16114112,2519.1,2519.0,0.7939]
[1750429888753,36.16114112,2519.1,2518.6,3.28016]
[1750429889057,35.0559,2519.1,2518.9,0.79391]
[1750429889256,34.262,2519.1,2519.0,0.7939]
[1750429889457,0.79391,2519.0,2518.9,0.79392]
[1750429889658,44.42047428,2519.1,2518.6,1.98506]
[1750429889852,0.79392,2519.0,2518.8,0.79395]
[1750429890055,44.42047428,2519.1,2518.5,1.98515]
[1750429890356,10.15847428,2519.1,2519.0,0.7939]
[1750429890557,46.24775386,2519.1,2519.0,0.7939]
[1750429890760,0.79391,2519.0,2518.5,1.98514]
[1750429891057,0.79394,2518.9,2518.8,0.79395]
[1750429891457,44.34847428,2519.1,2518.5,3.32434]
[1750429891458,45.14235428,2519.1,2519.0,0.7939]
[1750429891655,45.45095019,2519.1,2519.0,0.7939]
[1750429892458,27.64947591,2519.1,2519.0,0.7939]
[1750429892856,26.542,2519.1,2519.0,0.7939]
[1750429894554,27.33587,2519.1,2519.0,0.7939]
[1750429895061,28.44111267,2519.1,2519.0,0.7939]
[1750429895258,27.33587,2519.1,2519.0,0.7939]
[1750429895451,0.79392,2519.0,2518.5,1.9851]
[1750429895656,36.69147428,2518.9,2518.5,1.3619]
[1750429895856,36.69147428,2518.9,2518.8,0.79396]
[1750429896458,37.48542428,2518.9,2518.7,0.79397]
[1750429896659,37.48542428,2518.9,2518.8,0.79396]
[1750429896861,36.69147428,2518.9,2518.8,0.79396]
[1750429897361,36.69147428,2518.9,2518.4,3.2078]
[1750429897665,10.15847428,2518.6,2518.5,0.79406]
[1750429897860,13.36627428,2518.9,2518.7,0.79398]
[1750429898055,0.794,2518.7,2518.6,0.794]
[1750429898261,34.95698,2518.8,2518.7,0.79399]
[1750429898461,36.14793,2518.8,2518.4,2.12166]
[1750429898661,10.95251428,2518.6,2518.5,0.79405]
[1750429898866,36.67747428,2518.6,2518.5,0.79405]
[1750429899265,26.519,2518.6,2518.5,0.79405]
[1750429899667,27.31303,2518.6,2518.5,0.79405]
[1750429900068,27.31305,2518.6,2518.5,0.79406]
[1750429900269,26.519,2518.6,2518.5,0.79406]
[1750429900861,8.435,2518.7,2518.6,0.79403]
[1750429901063,3.2078,2518.9,2518.8,0.79396]
[1750429901366,38.46419076,2518.9,2518.8,0.79396]
[1750429901763,4.31319076,2518.9,2518.8,0.79396]
[1750429901961,29.7158,2518.9,2518.8,0.79396]
[1750429902263,29.7148,2518.9,2518.8,0.79396]
[1750429902469,3.2078,2519.5,2519.1,1.98468]
[1750429902661,3.86132158,2520.1,2519.2,6.46118]
[1750429902662,10.8488,2519.8,2519.2,6.46118]
[1750429902865,27.60996261,2519.7,2519.6,0.79369]
[1750429903363,27.29768,2519.7,2519.6,0.79369]
[1750429903563,26.504,2519.7,2519.6,0.79371]
[1750429903762,27.60986008,2519.7,2519.1,1.98467]
[1750429903964,10.95220428,2519.6,2519.1,1.98467]
[1750429904165,26.5,2519.5,2519.4,0.79377]
[1750429904970,3.2078,2519.8,2519.7,0.79368]
[1750429905164,29.7038,2519.8,2519.7,0.79368]
[1750429905963,7.641,2520.0,2519.9,0.79362]
[1750429906163,34.131,2520.0,2519.9,0.79362]
[1750429906364,34.131,2520.0,2519.8,1.3802]
[1750429906365,45.08308428,2520.0,2519.5,2.82044]
[1750429906566,44.28947428,2520.0,2519.9,0.79362]
[1750429907068,34.129,2520.0,2519.9,0.79362]
[1750429907972,34.92258,2520.0,2519.9,0.79362]
[1750429908272,34.129,2520.0,2519.9,0.79362]
[1750429908773,34.92258,2520.0,2519.9,0.79362]
[1750429909067,34.129,2520.0,2519.6,1.3835]
[1750429909272,10.15847428,2519.8,2519.7,0.79367]
[1750429909567,36.63447428,2519.8,2519.7,0.79367]
[1750429910274,41.82640428,2519.8,2519.4,0.79377]
[1750429910475,10.15847428,2519.5,2519.4,0.79377]
[1750429910773,36.62947428,2519.5,2519.4,0.79377]
[1750429911566,37.42321428,2519.5,2519.4,0.79377]
[1750429911766,0.79378,2519.4,2519.3,0.79378]
[1750429912369,27.26477,2519.5,2519.4,0.79377]
[1750429912576,0.79377,2519.4,2519.3,0.79378]
[1750429912874,36.62947428,2519.5,2519.4,0.79377]
[1750429913373,8.43262,2519.9,2519.8,0.79362]
[1750429913573,0.79366,2519.8,2519.7,0.79366]
[1750429913775,0.79365,2519.8,2519.7,0.79366]
[1750429914170,45.05511428,2519.9,2519.8,0.79365]
[1750429914367,3.2078,2520.1,2519.5,1.3696]
[1750429914368,13.36627428,2520.1,2519.6,1.98426]
[1750429914568,34.095,2519.9,2519.5,3.35392]
[1750429914769,34.095,2519.9,2519.8,0.79365]
[1750429914972,0.79365,2519.8,2519.7,0.79366]
[1750429915268,10.95212428,2519.8,2519.7,0.79366]
[1750429915468,0.79368,2519.7,2519.6,0.79369]
[1750429915667,26.452,2519.7,2519.6,0.79369]
[1750429919272,36.61047428,2519.7,2519.5,1.3696]
[1750429919470,0.79373,2519.6,2519.5,0.79371]
[1750429919675,36.61047428,2519.7,2519.6,0.79371]
[1750429919872,26.452,2519.7,2519.6,0.79371]
[1750429920271,27.24568,2519.7,2519.6,0.79371]
[1750429920466,0.79365,2519.9,2519.8,0.79362]
[1750429920670,34.79365,2519.9,2519.8,0.79362]
[1750429920875,0.79368,2519.8,2519.7,0.79366]
[1750429921078,0.79368,2519.8,2519.7,2.18396]
[1750429921373,0.79368,2519.8,2519.7,0.79366]
[1750429921574,10.15847428,2520.0,2519.6,2.80617]
[1750429921776,3.2078,2520.1,2520.0,0.79358]
[1750429922172,3.2078,2520.8,2520.2,1.9838]
[1750429922366,7.57,2521.1,2521.0,0.79327]
[1750429922572,0.79327,2521.0,2520.9,0.79329]
[1750429922772,7.57,2521.1,2521.0,0.79327]
[1750429922967,33.99,2521.1,2521.0,0.79327]
[1750429923178,34.78324,2521.1,2520.9,3.2078]
[1750429923382,0.79322,2521.2,2521.1,0.79324]
[1750429923582,26.419,2521.2,2521.1,0.79324]
[1750429923873,17.72747428,2521.3,2521.2,0.79321]
[1750429924076,45.73,2522.1,2521.3,1.98294]
[1750429924378,33.981,2522.0,2521.9,0.79299]
[1750429924571,1.2654,2522.3,2522.0,0.79295]
[1750429924572,0.79291,2522.2,2522.0,0.79295]
[1750429924772,27.20292,2522.1,2521.9,4.00076]
[1750429924974,26.41,2522.1,2522.0,0.79295]
[1750429925573,26.41,2522.1,2521.9,4.00076]
[1750429925779,26.408,2522.0,2521.9,4.00077]
[1750429925980,26.408,2522.0,2521.9,3.2078]
[1750429926281,26.408,2522.0,2521.3,10.32489]
[1750429926282,29.6158,2522.0,2521.7,0.79305]
[1750429926576,10.15847428,2521.8,2521.7,0.79305]
[1750429926776,36.55647428,2521.8,2521.4,4.4639]
[1750429926975,13.36627428,2522.0,2521.9,0.79299]
[1750429927177,33.964,2522.0,2521.4,6.44671]
[1750429927378,17.72647428,2522.0,2521.4,6.44671]
[1750429927575,26.395,2521.9,2521.4,4.4639]
[1750429927974,26.395,2521.9,2521.7,0.79302]
[1750429928281,26.395,2521.9,2521.4,6.44672]
[1750429928470,3.2078,2522.3,2521.9,0.79299]
[1750429928676,34.7499,2522.2,2522.0,0.79294]
[1750429928881,34.7499,2522.2,2522.1,0.79292]
[1750429929080,34.7499,2522.2,2521.7,3.2078]
[1750429929274,34.7499,2522.2,2521.8,1.3689]
[1750429929477,10.95143428,2522.0,2521.8,1.3689]
[1750429929675,26.386,2521.9,2521.8,0.79302]
[1750429930079,27.17899,2521.9,2521.8,0.79302]
[1750429930283,0.79302,2521.8,2521.7,0.79303]
[1750429930477,26.386,2521.9,2521.4,4.5767]
[1750429930784,10.15847428,2522.1,2521.5,1.98279]
[1750429930977,3.2078,2522.3,2521.6,1.3817]
[1750429930978,36.53547428,2522.0,2521.6,1.3817]
[1750429931182,36.53547428,2522.0,2520.9,5.19102]
[1750429931183,0.79316,2521.4,2520.9,5.19102]
[1750429931382,36.53447428,2521.4,2521.3,0.79317]
[1750429931685,37.32761428,2521.4,2521.3,0.79317]
[1750429931881,36.53447428,2521.4,2521.3,0.79317]
[1750429932083,3.2078,2521.7,2521.2,5.19078]
[1750429932283,27.16409,2521.6,2521.3,1.3817]
[1750429932582,26.371,2521.5,2521.4,0.79314]
[1750429933487,26.366,2521.5,2521.4,0.79314]
[1750429933989,26.366,2521.5,2521.4,2.11474]
[1750429934881,26.36,2521.5,2521.4,1.3216]
[1750429935080,0.79308,2521.7,2521.6,0.79308]
[1750429935380,27.15008,2521.7,2521.6,0.79308]
[1750429935587,0.79311,2521.6,2521.5,0.79309]
[1750429935789,0.79311,2521.5,2521.4,0.79313]
[1750429935982,3.2078,2522.0,2521.4,1.98285]
[1750429936183,26.351,2521.9,2521.5,5.3169]
[1750429936480,0.79304,2521.8,2521.5,5.3169]
[1750429936685,0.79308,2521.6,2521.5,4.0009]
[1750429936881,27.14208,2521.6,2521.5,3.2078]
[1750429937081,26.349,2521.6,2521.3,0.79317]
[1750429937381,33.914,2521.6,2521.2,6.45211]
[1750429937580,34.70709,2521.6,2521.5,0.79311]
[1750429937984,33.914,2521.6,2521.5,0.79311]
[1750429938189,3.2078,2521.8,2521.7,0.79305]
[1750429938390,30.34582,2521.8,2521.7,0.79305]
[1750429938689,29.5528,2521.8,2521.7,0.79305]
[1750429939086,3.2078,2521.8,2521.7,0.79305]
[1750429939287,26.338,2521.8,2521.7,0.79305]
[1750429939682,26.338,2521.9,2521.7,0.79305]
[1750429939886,26.336,2521.9,2521.8,2.10332]
[1750429940484,0.79295,2522.1,2522.0,0.79295]
[1750429940689,27.12895,2522.1,2522.0,0.79295]
[1750429940888,0.79302,2521.8,2521.7,0.79303]
[1750429941194,27.12502,2521.8,2521.7,0.79303]
[1750429941495,0.79305,2521.8,2521.7,0.79302]
[1750429941794,0.79295,2522.1,2522.0,0.79292]
[1750429942087,44.04947428,2522.1,2521.5,1.3103]
[1750429942289,0.79327,2521.1,2521.0,0.79324]
[1750429942494,26.326,2521.1,2521.0,0.79324]
[1750429942884,10.95171428,2521.1,2521.0,0.79324]
[1750429943190,37.27574428,2521.1,2521.0,0.79327]
[1750429943392,27.11727,2521.1,2521.0,0.79327]
[1750429943992,4.00099,2521.3,2521.2,0.79321]
[1750429944294,0.79323,2521.2,2521.1,0.79321]
[1750429944498,0.7933,2521.0,2520.8,1.3577]
[1750429944695,37.27080428,2520.9,2520.8,0.79332]
[1750429944896,27.11233,2520.9,2520.8,0.79333]
[1750429945091,0.79339,2520.7,2520.6,0.79337]
[1750429945390,0.79335,2520.8,2520.7,0.79333]
[1750429945694,0.79338,2520.7,2520.6,0.79336]
[1750429946192,11.29514812,2520.7,2520.4,3.2078]
[1750429946398,0.79348,2520.4,2520.3,0.79346]
[1750429946592,7.564,2520.5,2520.1,1.3869]
[1750429946795,0.79347,2520.4,2520.3,0.79347]
[1750429946998,0.79352,2520.3,2520.2,0.79352]
[1750429947194,0.79355,2520.1,2520.0,4.00137]
[1750429947390,3.2078,2520.4,2520.0,3.2078]
[1750429947595,3.2078,2520.4,2520.3,0.79349]
[1750429947797,29.5168,2520.4,2520.3,0.79349]
[1750429948300,3.2078,2520.4,2520.3,0.79349]
[1750429948601,29.5158,2520.4,2520.3,0.79349]
[1750429948802,30.30926,2520.4,2520.3,0.79349]
[1750429949000,27.10146,2520.4,2520.3,0.79349]
[1750429949190,0.7935,2520.3,2520.2,0.7935]
[1750429949395,0.79352,2520.3,2520.2,0.79351]
[1750429949697,0.79355,2520.1,2520.0,3.2078]
[1750429949902,34.66555,2520.1,2520.0,3.2078]
[1750429950302,0.79352,2520.2,2520.1,0.79355]
[1750429950491,34.66052,2520.2,2520.1,0.79355]
[1750429950697,33.867,2520.2,2520.1,0.79355]
[1750429950898,0.79355,2520.1,2520.0,4.00136]
[1750429951199,3.2078,2520.5,2520.4,0.79346]
[1750429951403,26.299,2520.5,2520.3,0.79347]
[1750429951593,27.09245,2520.5,2520.4,0.79346]
[1750429951798,26.299,2520.5,2520.4,0.79346]
[1750429952009,27.09243,2520.5,2520.4,0.79346]
[1750429952305,27.09243,2520.5,2519.8,1.9841]
[1750429952306,34.5068,2520.5,2519.8,0.79362]
[1750429952608,0.79364,2519.9,2519.7,4.00146]
[1750429952799,26.294,2519.8,2519.7,4.00146]
[1750429953606,26.293,2519.8,2519.7,4.00148]
[1750429953906,3.2078,2520.2,2520.1,0.79355]
[1750429954211,29.4978,2520.8,2520.7,0.79336]
[1750429954507,0.79338,2520.7,2520.6,0.79338]
[1750429954710,30.29114,2520.8,2520.7,0.79336]
[1750429955004,3.2078,2520.8,2520.7,0.79336]
[1750429955207,29.4958,2520.8,2520.7,0.79336]
[1750429955400,29.4958,2520.8,2520.6,0.79338]
[1750429955697,3.2078,2520.8,2520.5,1.2986]
[1750429955902,26.287,2520.7,2520.6,0.79339]
[1750429956306,3.2078,2520.8,2520.7,0.79336]
[1750429956496,29.4928,2520.8,2520.7,0.79336]
[1750429956699,3.2078,2520.8,2520.7,0.79336]
[1750429957008,0.79326,2521.1,2521.0,0.79327]
[1750429957204,0.7933,2520.9,2520.8,1.2986]
[1750429957507,0.7933,2520.9,2520.3,3.2078]
[1750429957508,39.55846812,2520.9,2520.3,3.2078]
[1750429957707,0.79345,2520.5,2520.4,0.79342]
[1750429958008,27.07245,2520.5,2520.4,0.79342]
[1750429958201,0.79346,2520.4,2520.3,3.2078]
[1750429958597,26.279,2520.5,2520.1,1.2986]
[1750429958802,26.279,2520.5,2520.3,0.79349]
[1750429959004,27.07244,2520.5,2520.3,0.79346]
[1750429959309,0.79338,2520.7,2520.6,0.79339]
[1750429959504,33.769,2520.7,2520.4,1.3862]
[1750429959713,37.65143355,2520.7,2520.6,0.79339]
[1750429959913,0.79346,2520.4,2520.3,0.79347]
[1750429960208,0.79346,2520.4,2520.3,0.79349]
[1750429960209,27.06446,2520.4,2520.3,0.79349]
[1750429960603,27.06446,2520.4,2519.8,1.3862]
[1750429960604,28.25467,2520.4,2519.8,1.3862]
[1750429960809,0.79361,2520.0,2519.7,4.0244]
[1750429960997,27.06161,2520.0,2519.7,4.0244]
[1750429961201,0.79362,2519.9,2519.8,0.79362]
[1750429961404,26.268,2520.0,2519.9,0.79361]
[1750429962113,3.2078,2520.2,2520.1,0.79355]
[1750429962312,29.4708,2520.2,2520.1,0.79355]
[1750429963005,36.45463,2520.2,2519.5,1.98436]
[1750429963205,36.45463,2520.2,2519.4,4.0146]
[1750429963206,3.2078,2519.9,2519.4,5.2866]
[1750429963407,26.262,2519.8,2519.5,0.79372]
[1750429963611,0.79371,2519.6,2519.5,0.79372]
[1750429963917,26.262,2519.8,2519.4,4.0146]
[1750429963918,28.24614,2519.8,2519.4,4.0146]
[1750429964110,27.6279,2519.8,2519.4,4.0146]
[1750429964410,0.7937,2519.7,2519.4,4.0146]
[1750429964603,0.7937,2519.7,2519.5,0.79373]
[1750429964809,0.79374,2519.5,2519.4,4.80835]
[1750429965113,26.257,2519.5,2519.4,4.80835]
[1750429965506,3.2078,2519.9,2519.4,5.99898]
[1750429965705,3.2078,2519.9,2519.8,0.79365]
[1750429966204,3.2078,2520.2,2520.1,0.79352]
[1750429966511,29.4618,2520.2,2520.1,0.79352]
[1750429966807,3.2078,2520.6,2520.3,0.79346]
[1750429967012,3.2078,2520.6,2519.9,3.25922]
[1750429967013,7.497,2520.4,2519.9,3.25923]
[1750429967312,0.7935,2520.3,2520.1,0.79353]
[1750429967510,7.497,2520.4,2520.1,0.79353]
[1750429967511,26.251,2520.2,2520.1,0.79353]
[1750429967907,26.251,2520.2,2520.0,0.79356]
[1750429968204,26.251,2520.2,2519.7,3.2078]
[1750429968205,37.54614812,2520.2,2519.7,3.2078]
[1750429968411,0.79357,2520.1,2520.0,0.79356]
[1750429969115,0.79363,2519.9,2519.8,0.79363]
[1750429969314,27.04063,2519.9,2519.7,3.2078]
[1750429969611,0.79365,2519.8,2519.7,3.2078]
[1750429969813,0.79357,2520.1,2519.7,3.2078]
[1750429970006,8.29057,2520.1,2520.0,0.79355]
[1750429970206,34.53257,2520.1,2520.0,0.79355]
[1750429970407,4.0013,2520.3,2520.2,0.79352]
[1750429970608,3.2078,2520.3,2520.2,0.79352]
[1750429970909,29.4488,2520.3,2520.2,0.79352]
[1750429971106,30.24229,2520.3,2520.2,0.79352]
[1750429971313,29.4488,2520.3,2519.8,1.98408]
[1750429971811,0.79356,2520.2,2520.1,0.79353]
[1750429972214,13.27898812,2520.2,2519.7,3.2078]
[1750429972414,0.79365,2519.8,2519.7,4.00146]
[1750429972614,27.02765,2519.8,2519.7,3.2078]
[1750429973513,28.21812,2519.8,2519.4,0.8068]
[1750429973716,11.29514812,2519.6,2519.0,3.2078]
[1750429973920,0.79386,2519.1,2519.0,3.2078]
[1750429974115,27.02286,2519.1,2519.0,3.2078]
[1750429974609,33.727,2519.1,2518.6,4.82752]
[1750429974918,0.79399,2518.7,2518.6,3.2078]
[1750429975106,27.02099,2518.7,2518.6,3.2078]
[1750429975308,4.00167,2519.1,2518.6,3.2078]
[1750429975506,0.79394,2518.9,2518.8,0.79394]
[1750429975712,0.79396,2518.8,2518.6,4.0018]
[1750429976021,26.225,2518.7,2518.6,4.00182]
[1750429976521,8.29192,2519.0,2518.9,0.79392]
[1750429976818,34.5139,2519.0,2518.9,0.79393]
[1750429977012,0.79399,2518.7,2518.6,5.30559]
[1750429977210,27.01499,2518.7,2518.6,5.30559]
[1750429977411,26.221,2518.7,2518.6,5.30559]
[1750429978418,27.01499,2518.7,2518.6,5.30559]
[1750429978923,26.221,2518.7,2518.6,5.30559]
[1750429980421,27.01499,2518.7,2518.6,5.30559]
[1750429980719,26.221,2518.7,2518.6,5.30559]
[1750429980916,26.221,2518.7,2518.3,0.8257]
[1750429981119,26.221,2518.7,2518.6,0.79402]
[1750429981313,3.2078,2519.1,2518.5,1.98511]
[1750429981515,3.2078,2519.4,2519.3,0.7938]
[1750429981912,3.2078,2519.4,2519.0,0.7678]
[1750429982118,3.2078,2519.4,2519.3,0.7938]
[1750429982312,3.2078,2519.4,2519.1,1.3385]
[1750429982520,0.79386,2519.1,2519.0,0.79389]
[1750429982728,0.79392,2519.0,2518.9,0.79392]
[1750429983223,0.79395,2518.9,2518.8,0.79394]
[1750429983620,26.208,2519.1,2518.6,1.2942]
[1750429983819,0.79393,2518.9,2518.8,0.79394]
[1750429984019,0.79399,2518.7,2518.6,1.2942]
[1750429984223,0.79404,2518.6,2518.4,3.2078]
[1750429984428,20.71789812,2519.0,2518.4,3.2078]
[1750429984630,0.79405,2518.5,2518.4,4.00187]
[1750429984826,26.203,2518.5,2518.4,4.00187]
[1750429985120,26.99705,2518.5,2518.4,3.2078]
[1750429985729,26.203,2518.5,2518.0,3.2078]
[1750429986527,0.79418,2518.1,2518.0,3.2078]
[1750429986824,26.203,2518.5,2518.0,3.2078]
[1750429986825,0.79417,2518.2,2518.0,3.2078]
[1750429987024,26.203,2518.5,2518.1,0.79415]
[1750429987230,3.2078,2518.8,2518.1,1.2843]
[1750429987432,33.632,2518.7,2518.1,1.2843]
[1750429987631,0.79391,2519.0,2518.9,0.79392]
[1750429987824,0.79391,2519.0,2518.5,1.98514]
[1750429987825,0.79393,2518.9,2518.8,0.79394]
[1750429988127,0.79399,2518.7,2518.6,1.2843]
[1750429988430,28.17782,2519.0,2518.2,0.8292]
[1750429988728,0.79401,2518.7,2518.6,0.79402]
[1750429988930,29.45702,2519.0,2518.3,1.3364]
[1750429988931,27.4722,2519.0,2518.4,3.2078]
[1750429989230,0.79397,2518.8,2518.7,0.79398]
[1750429989431,0.794,2518.7,2518.5,1.3364]
[1750429989730,26.189,2518.9,2518.8,0.79396]
[1750429989927,0.79397,2518.8,2518.7,0.79397]
[1750429990227,0.794,2518.7,2518.6,0.794]
[1750429990423,26.189,2518.9,2518.5,2.13044]
[1750429990630,26.186,2519.3,2518.7,3.2078]
[1750429990923,26.186,2519.3,2518.8,1.3364]
[1750429991125,50.52787041,2519.7,2518.8,1.3364]
[1750429991126,51.00268,2519.7,2519.0,1.98475]
[1750429991334,1.10776701,2519.6,2519.2,3.2078]
[1750429991518,3.2078,2520.0,2519.9,0.79361]
[1750429991724,3.2078,2520.3,2519.6,1.98427]
[1750429991932,3.2078,2520.3,2520.0,0.79356]
[1750429992233,26.182,2520.2,2520.1,0.79355]
[1750429992426,4.0013,2520.3,2520.1,0.79355]
[1750429992626,26.97352,2520.2,2520.0,0.79357]
[1750429992826,0.79352,2520.2,2520.0,0.79357]
[1750429993023,26.178,2520.1,2520.0,0.79357]
[1750429993228,0.79361,2520.0,2519.8,0.79362]
[1750429993529,0.79361,2520.0,2519.7,2.054]
[1750429993530,26.178,2520.1,2519.7,2.054]
[1750429993732,26.97157,2520.1,2519.9,0.79361]
[1750429994028,26.178,2520.1,2519.7,2.054]
[1750429994227,0.79363,2519.9,2519.7,0.79366]
[1750429994427,8.23263,2519.9,2519.7,0.79366]
[1750429994830,7.439,2519.9,2519.3,2.1776]
[1750429995032,7.439,2519.9,2519.5,0.79372]
[1750429995232,0.79375,2519.5,2519.3,0.79378]
[1750429995432,26.172,2519.4,2519.3,0.79378]
[1750429995632,3.2078,2519.7,2519.6,0.79371]
[1750429995828,3.2078,2520.2,2519.8,0.79364]
[1750429996028,34.71277669,2520.1,2519.7,1.3646]
[1750429996333,33.604,2520.1,2519.7,1.3646]
[1750429996733,34.39756,2520.1,2519.9,0.7936]
[1750429996935,34.39756,2520.1,2519.8,0.79363]
[1750429997232,33.604,2520.1,2519.7,2.1736]
[1750429997536,26.165,2520.0,2519.8,1.3829]
[1750429997728,3.2078,2520.2,2520.1,0.79355]
[1750429997934,26.161,2520.2,2520.0,0.79357]
[1750429998134,26.95452,2520.2,2520.0,0.79357]
[1750429998334,48.9488,2520.6,2519.9,3.2078]
[1750429998534,1.10653855,2520.5,2520.0,1.3829]
[1750429998734,33.595,2520.4,2520.2,0.79349]
[1750429998933,48.9488,2520.6,2520.0,1.3829]
[1750429999128,26.156,2520.5,2520.4,0.79344]
[1750429999329,26.94944,2520.5,2520.3,0.79347]
[1750429999638,0.79345,2520.4,2520.2,0.79351]
[1750429999835,26.154,2520.5,2520.0,1.3829]
[1750430000131,26.154,2520.5,2520.3,3.2078]
[1750430000337,0.79345,2520.4,2520.3,3.2078]
[1750430000635,26.154,2520.5,2520.3,3.2078]
[1750430000836,26.94745,2520.5,2520.3,4.00128]
[1750430001035,46.53439,2520.6,2520.3,3.2078]
[1750430001237,26.152,2520.5,2520.4,0.79343]
[1750430001543,3.2078,2520.9,2520.7,0.79335]
[1750430001839,26.146,2520.8,2520.7,0.79335]
[1750430002430,26.146,2520.8,2520.4,2.0935]
[1750430002830,0.79342,2520.5,2520.4,2.0935]
[1750430003030,0.79351,2520.3,2520.1,0.79354]
[1750430003236,3.2078,2520.6,2520.1,1.3065]
[1750430003437,26.142,2520.3,2520.1,1.3065]
[1750430003637,0.79352,2520.2,2520.1,1.3065]
[1750430003933,0.79353,2520.2,2520.0,0.79356]
[1750430004140,0.79353,2520.2,2520.0,4.5357]
[1750430004335,26.142,2520.3,2520.0,2.12147]
[1750430004540,0.79352,2520.2,2520.0,2.12147]
[1750430004735,26.9355,2520.3,2520.1,0.79355]
[1750430004935,0.79352,2520.2,2520.1,0.79355]
[1750430005239,0.79355,2520.1,2520.0,0.79358]
[1750430005443,0.79353,2520.2,2520.1,0.79355]
[1750430005940,26.142,2520.3,2519.8,1.3279]
[1750430006146,0.79361,2519.9,2519.8,2.12151]
[1750430006442,0.79361,2519.9,2519.8,1.3279]
[1750430006643,0.79364,2519.8,2519.7,3.2078]
[1750430006941,0.79374,2519.6,2519.3,4.4982]
[1750430007244,0.79376,2519.5,2519.4,0.79374]
[1750430007540,26.92372,2519.6,2519.5,0.79374]
[1750430007936,0.79369,2519.7,2519.6,0.79371]
[1750430008235,26.92069,2519.7,2519.6,0.79371]
[1750430008441,0.79372,2519.6,2519.5,0.7937]
[1750430008641,0.79372,2519.6,2519.4,0.79374]
[1750430008843,0.79372,2519.6,2519.5,0.79373]
[1750430009045,0.79372,2519.6,2519.4,1.2904]
[1750430009339,0.79372,2519.6,2519.5,0.79373]
[1750430010341,26.118,2519.7,2519.6,0.7937]
[1750430010543,0.79362,2519.9,2519.8,0.79364]
[1750430010741,0.79364,2519.8,2519.7,2.16926]
[1750430010944,0.79376,2519.5,2519.4,0.79374]
[1750430011139,0.79376,2519.4,2519.3,4.75057]
[1750430011744,26.91075,2519.5,2519.4,0.79376]
[1750430012241,8.17372,2519.6,2519.5,0.7937]
[1750430012544,0.79362,2519.9,2519.8,0.79364]
[1750430012843,26.90562,2519.9,2519.8,0.79364]
[1750430013040,3.2078,2520.0,2519.9,0.7936]
[1750430013343,30.11137,2520.0,2519.9,0.7936]
[1750430013842,29.3178,2520.0,2519.9,0.7936]
[1750430014941,29.3188,2520.0,2519.9,0.7936]
[1750430015244,26.111,2520.0,2519.9,0.7936]
[1750430015447,26.90457,2520.0,2519.9,0.7936]
[1750430015740,26.111,2520.0,2519.9,0.7936]
[1750430016040,26.90457,2520.0,2519.9,0.7936]
[1750430016245,0.7936,2519.9,2519.8,0.7936]
[1750430016746,0.79367,2519.8,2519.7,0.79363]
[1750430017044,0.79363,2519.9,2519.8,0.79359]
[1750430017243,26.89363,2519.9,2519.8,0.79359]
[1750430017845,0.79367,2519.8,2519.7,0.79365]
[1750430018041,0.79362,2519.9,2519.8,0.79364]
[1750430018240,26.88962,2519.9,2519.8,0.79364]
[1750430018441,0.79367,2519.7,2519.6,1.2948]
[1750430018645,0.79367,2519.7,2519.6,0.79368]
[1750430018853,0.79376,2519.4,2519.3,0.749]
[1750430019042,0.79379,2519.3,2519.2,4.00161]
[1750430019244,0.79379,2519.3,2519.2,4.00163]
[1750430019440,0.79379,2519.3,2519.2,3.2078]
[1750430019648,0.79392,2518.9,2518.8,2.1123]
[1750430019848,0.79392,2518.9,2518.8,1.60454]
[1750430020248,0.79401,2518.7,2518.5,4.5095]
[1750430020447,0.79398,2518.8,2518.7,0.79395]
[1750430020650,26.094,2519.0,2518.5,6.4946]
[1750430020844,0.79391,2519.0,2518.9,0.7939]
[1750430021044,26.88291,2519.0,2518.9,0.7939]
[1750430021445,4.00161,2519.3,2519.2,0.79383]
[1750430021645,26.087,2519.4,2519.3,0.79379]
[1750430022144,26.88076,2519.4,2519.3,0.79379]
[1750430022439,26.087,2519.4,2519.3,0.79379]
[1750430023042,26.88076,2519.4,2519.3,0.79379]
[1750430023553,0.79382,2519.3,2519.2,0.7938]
[1750430023751,26.087,2519.4,2518.9,4.012]
[1750430023954,0.79389,2519.0,2518.9,4.80591]
[1750430024252,0.79395,2518.8,2518.7,2.09705]
[1750430024950,0.79395,2518.8,2518.7,1.3031]
[1750430025146,0.79398,2518.7,2518.6,4.00181]
[1750430025744,0.79398,2518.7,2518.6,3.2078]
[1750430027151,0.79398,2518.7,2518.6,4.00181]
[1750430027352,0.79397,2518.8,2518.7,0.79396]